[Event "CIS Master Groups 2024"]
[Site "Vasto"]
[Date "2024.04.14"]
[Round "11.18"]
[White "Glover, Sharon"]
[Black "Grimaldi, Angela Flavia"]
[Result "1-0"]
[ECO "B34"]
[WhiteElo "1705"]
[BlackElo "1983"]
[Annotator "NA RC"]
[PlyCount "99"]
[EventDate "2024.04.07"]
[EventType "team-tourn"]
[EventCountry "ITA"]
[SourceTitle "playchess.com"]
[Source "ChessBase"]
[SourceQuality "1"]
[TimeControl "40/5400+30:900+30"]

1. e4 {[%emt 0:00:03]} c5 {[%emt 0:05:38]} 2. Nf3 {[%emt 0:00:04]} g6 {[%emt 0:00:04]} 3. d4 {[%emt 0:00:03]} cxd4 {[%emt 0:00:05]} 4. Nxd4 {[%emt 0:00:02]} Nc6 {[%emt 0:00:07]} 5. Nc3 {[%emt 0:00:05]} Bg7 {[%emt 0:00:05]} 6. Be3 {[%emt 0:00:02]} Nf6 {[%emt 0:00:06]} 7. Be2 {[%emt 0:00:03]} O-O {[%emt 0:00:12]} 8. O-O {[%emt 0:00:02]} d5 {[%emt 0:02:54]} 9. exd5 {[%emt 0:00:04]} Nxd5 {[%emt 0:00:06]} 10. Nxd5 {[%emt 0:00:15]} Qxd5 {[%emt 0:04:09]} 11. Bf3 {[%emt 0:05:10]} Qc4 {[%emt 0:04:46]} 12. Nxc6 {[%emt 0:02:19]} bxc6 {[%emt 0:00:09]} 13. c3 {[%emt 0:00:30]} Bf5 {[%emt 0:08:22]} 14. Qb3 {[%emt 0:02:53]} Qa6 {[%emt 0:05:48]} 15. Bc5 {[%emt 0:03:21]} Rab8 {[%emt 0:09:13]} 16. Qa3 {[%emt 0:01:36]} Qxa3 {[%emt 0:01:12]} 17. Bxa3 {[%emt 0:00:06]} Rfc8 {[%emt 0:00:28]} 18. Rfe1 {[%emt 0:00:23]} Be6 {[%emt 0:05:32]} 19. h3 {[%emt 0:14:28]} c5 {[%emt 0:03:04]} 20. Bg4 {[%emt 0:00:36]} Bxg4 {[%emt 0:02:07]} 21. hxg4 {[%emt 0:00:10]} e6 {[%emt 0:00:33]} 22. Rab1 {[%emt 0:00:10]} Rb6 {[%emt 0:14:06]} 23. Rbd1 {[%emt 0:02:18]} Ra6 {[%emt 0:03:28]} 24. Re3 {[%emt 0:05:31]} Bh6 {[%emt 0:12:47]} 25. Red3 {[%emt 0:06:15]} Bg5 {[%emt 0:02:24]} 26. g3 {[%emt 0:01:16]} h6 {[%emt 0:06:15]} 27. Rd7 {[%emt 0:01:21]} Bf6 {[%emt 0:01:14]} 28. R1d3 {[%emt 0:01:11]} Kg7 {[%emt 0:06:13]} 29. Rb7 {[%emt 0:00:38]} c4 {[%emt 0:01:09]} 30. Rdd7 {[%emt 0:02:03]} Bxc3 {[%emt 0:00:50]} 31. Rxf7+ {[%emt 0:13:38]} Kg8 {[%emt 0:00:17]} 32. bxc3 {[%emt 0:01:30]} Rxa3 {[%emt 0:00:05]} 33. Rg7+ {[%emt 0:00:13]} Kh8 {[%emt 0:01:34]} 34. Rxg6 {[%emt 0:00:56]} Rxc3 {[%emt 0:00:05]} 35. Rxh6+ {[%emt 0:00:17]} Kg8 {[%emt 0:00:04]} 36. Rxe6 {[%emt 0:00:31]} Rc1+ {[%emt 0:00:14]} 37. Kg2 {[%emt 0:00:03]} c3 {[%emt 0:00:08]} 38. Ree7 {[%emt 0:00:38]} a5 {[%emt 0:02:39]} 39. Rbc7 {[%emt 0:00:26]} Rxc7 {[%emt 0:00:55]} 40. Rxc7 {[%emt 0:00:05]} Rc2 {[%emt 0:00:12]} 41. a4 {[%emt 0:15:39]} Kf8 {[%emt 0:15:59]} 42. Kf3 {[%emt 0:00:24]} Ke8 {[%emt 0:00:28]} 43. Rc5 {[%emt 0:00:15]} Kf7 {[%emt 0:00:19]} 44. Rxa5 {[%emt 0:00:15]} Ra2 {[%emt 0:00:07]} 45. Rc5 {[%emt 0:00:10]} c2 {[%emt 0:00:16]} 46. a5 {[%emt 0:00:47]} Ra3+ {[%emt 0:00:51]} 47. Ke2 {[%emt 0:01:31]} Ra2 {[%emt 0:00:05]} 48. Kd2 {[%emt 0:00:27]} c1=Q+ {[%emt 0:00:19]} 49. Kxc1 {[%emt 0:00:03]} Rxf2 {[%emt 0:00:03]} 50. Rf5+ {[%emt 0:00:03]} 1-0

[Event "CIS Master Groups 2024"]
[Site "Vasto"]
[Date "2024.04.14"]
[Round "11.19"]
[White "Martinelli, Valeria"]
[Black "Lustro, Clara"]
[Result "1-0"]
[ECO "D02"]
[WhiteElo "2034"]
[BlackElo "1561"]
[Annotator "NA RC"]
[PlyCount "45"]
[EventDate "2024.04.07"]
[EventType "team-tourn"]
[EventCountry "ITA"]
[SourceTitle "playchess.com"]
[Source "ChessBase"]
[SourceQuality "1"]
[TimeControl "40/5400+30:900+30"]

1. d4 {[%emt 0:01:47]} d5 {[%emt 0:00:13]} 2. Nf3 {[%emt 0:00:14]} Nf6 {[%emt 0:00:24]} 3. Bf4 {[%emt 0:03:08]} c5 {[%emt 0:03:30]} 4. e3 {[%emt 0:04:00]} Bf5 {[%emt 0:01:04]} 5. Bb5+ {[%emt 0:02:36]} Nbd7 {[%emt 0:05:27]} 6. Nc3 {[%emt 0:05:30]} e6 {[%emt 0:01:10]} 7. O-O {[%emt 0:08:02]} a6 {[%emt 0:01:56]} 8. Bd3 {[%emt 0:03:23]} Bg4 {[%emt 0:07:23]} 9. h3 {[%emt 0:00:37]} Bh5 {[%emt 0:00:20]} 10. Re1 {[%emt 0:01:47]} Be7 {[%emt 0:01:22]} 11. a4 {[%emt 0:02:35]} Qb6 {[%emt 0:01:38]} 12. a5 {[%emt 0:14:10]} Qxb2 {[%emt 0:15:54]} 13. Na4 {[%emt 0:00:21]} Qb4 {[%emt 0:00:29]} 14. c3 {[%emt 0:00:15]} Qxa5 {[%emt 0:00:58]} 15. Nxc5 {[%emt 0:00:13]} Qxc3 {[%emt 0:02:05]} 16. Nxb7 {[%emt 0:02:25]} Bxf3 {[%emt 0:00:45]} 17. gxf3 {[%emt 0:00:04]} e5 {[%emt 0:11:26]} 18. dxe5 {[%emt 0:00:32]} Nxe5 {[%emt 0:00:49]} 19. Bxa6 {[%emt 0:03:41]} O-O {[%emt 0:13:30]} 20. Be2 {[%emt 0:02:49]} Rfb8 {[%emt 0:07:42]} 21. Rc1 {[%emt 0:02:41]} Qa3 {[%emt 0:07:46]} 22. Bxe5 {[%emt 0:02:44]} Rxb7 {[%emt 0:00:49]} 23. Ra1 {[%emt 0:00:16]} 1-0

[Event "CIS Master Groups 2024"]
[Site "Vasto"]
[Date "2024.04.14"]
[Round "11.20"]
[White "Romeo, Eleonora"]
[Black "Fiolo, Costanza"]
[Result "0-1"]
[ECO "C55"]
[WhiteElo "1533"]
[BlackElo "1863"]
[Annotator "NA RC"]
[PlyCount "76"]
[EventDate "2024.04.07"]
[EventType "team-tourn"]
[EventCountry "ITA"]
[SourceTitle "playchess.com"]
[Source "ChessBase"]
[SourceQuality "1"]
[TimeControl "40/5400+30:900+30"]

1. e4 {[%emt 0:00:16]} Nf6 {[%emt 0:03:04]} 2. Nc3 {[%emt 0:01:40]} e5 {[%emt 0:00:34]} 3. Nf3 {[%emt 0:01:43]} Nc6 {[%emt 0:00:25]} 4. Bc4 {[%emt 0:01:48]} Nxe4 {[%emt 0:05:34]} 5. Bxf7+ {[%emt 0:05:30]} Kxf7 {[%emt 0:00:47]} 6. Nxe4 {[%emt 0:02:04]} d5 {[%emt 0:01:20]} 7. Neg5+ {[%emt 0:04:11]} Kg8 {[%emt 0:01:48]} 8. d3 {[%emt 0:04:31]} Be7 {[%emt 0:05:29]} 9. Bd2 {[%emt 0:05:59]} h6 {[%emt 0:03:42]} 10. Nh3 {[%emt 0:03:42]} Bg4 {[%emt 0:02:32]} 11. Nhg1 {[%emt 0:03:14]} Bh5 {[%emt 0:11:22]} 12. Ne2 {[%emt 0:07:01]} Qf8 {[%emt 0:04:05]} 13. Ng3 {[%emt 0:02:33]} Bxf3 {[%emt 0:02:50]} 14. Qxf3 {[%emt 0:03:21]} Qxf3 {[%emt 0:00:32]} 15. gxf3 {[%emt 0:00:13]} Rf8 {[%emt 0:00:55]} 16. O-O-O {[%emt 0:01:29]} Rxf3 {[%emt 0:02:15]} 17. Rdf1 {[%emt 0:02:31]} Kh7 {[%emt 0:01:35]} 18. Rhg1 {[%emt 0:02:05]} Rhf8 {[%emt 0:03:18]} 19. Rg2 {[%emt 0:01:54]} R8f7 {[%emt 0:05:11]} 20. Kd1 {[%emt 0:02:25]} Bc5 {[%emt 0:02:44]} 21. Be1 {[%emt 0:02:10]} Ne7 {[%emt 0:05:08]} 22. Ke2 {[%emt 0:03:05]} Ng6 {[%emt 0:03:50]} 23. Nh5 {[%emt 0:04:02]} Rh3 {[%emt 0:07:44]} 24. Rfg1 {[%emt 0:03:13]} Rxh5 {[%emt 0:01:26]} 25. Rxg6 {[%emt 0:00:28]} Rxh2 {[%emt 0:00:45]} 26. R6g2 {[%emt 0:03:10]} Rxg2 {[%emt 0:00:48]} 27. Rxg2 {[%emt 0:00:07]} g5 {[%emt 0:00:32]} 28. f3 {[%emt 0:02:14]} Kg6 {[%emt 0:01:33]} 29. b4 {[%emt 0:01:58]} Bd6 {[%emt 0:01:47]} 30. Bd2 {[%emt 0:02:06]} Rf5 {[%emt 0:03:01]} 31. a3 {[%emt 0:03:42]} h5 {[%emt 0:04:57]} 32. Be1 {[%emt 0:03:20]} Rf8 {[%emt 0:01:59]} 33. Bd2 {[%emt 0:01:45]} Be7 {[%emt 0:00:47]} 34. c3 {[%emt 0:02:16]} h4 {[%emt 0:03:22]} 35. Be1 {[%emt 0:04:06]} Rh8 {[%emt 0:00:27]} 36. Bd2 {[%emt 0:01:32]} Kf5 {[%emt 0:00:50]} 37. Rf2 {[%emt 0:03:51]} h3 {[%emt 0:01:07]} 38. Rh2 {[%emt 0:00:30]} g4 {[%emt 0:01:23]} 0-1

[Event "CIS Master Groups 2024"]
[Site "Vasto"]
[Date "2024.04.14"]
[Round "11.21"]
[White "Natoli, Alessia"]
[Black "Osmak, Yuliia"]
[Result "0-1"]
[ECO "B50"]
[WhiteElo "1917"]
[BlackElo "2459"]
[Annotator "TA"]
[PlyCount "183"]
[EventDate "2024.04.07"]
[EventType "team-tourn"]
[EventCountry "ITA"]
[SourceTitle "playchess.com"]
[Source "ChessBase"]
[SourceQuality "1"]
[TimeControl "40/5400+30:900+30"]

{[%evp 11,183,2,-1,-8,0,-5,15,26,26,12,1,5,8,23,6,-8,0,-9,72,88,53,0,0,-12,41,9,38,19,26,6,27,12,9,13,19,0,24,26,8,10,72,12,2,0,0,0,0,0,9,0,0,0,119,8,245,248,308,291,373,349,360,353,619,344,291,132,136,137,131,50,39,59,39,43,93,81,69,93,40,19,265,272,258,227,212,59,52,13,18,8,139,144,134,42,47,6,5,5,5,5,110,8,43,41,114,22,66,81,64,80,93,96,103,80,137,15,8,0,0,0,0,0,0,-8,-8,-8,-8,-8,-8,-8,0,-8,0,0,0,-8,-8,-8,-8,-8,-8,-8,-8,-8,-8,-29963,-29964,-29965,-29965,-29970,-29971,-29971,-29970,-29972,-29973,-29974,-29975,-29975,-29976,-29976,-29976,-29978,-29978,-29978,-29979,-29979,-29980,-29980,-29981,-29981,-29982,-29982,-29983,-29982]} 1. e4 {[%emt 0:00:02]} c5 {[%emt 0:00:06]} 2. Nf3 {[%emt 0:00:16]} d6 {[%emt 0:00:07]} 3. c3 {[%emt 0:00:16]} Nf6 {[%emt 0:00:18]} 4. Be2 {[%emt 0:00:24]} g6 {[%emt 0:00:26]} 5. O-O {[%emt 0:00:50]} Bg7 {[%emt 0:00:05]} 6. Bb5+ {[%emt 0:00:34]} Nc6 {[%emt 0:00:34]} 7. Re1 {[%emt 0:01:46]} O-O {[%emt 0:02:33]} 8. h3 {[%emt 0:02:31]} a6 {[%emt 0:05:28]} 9. Bxc6 {[%emt 0:02:51] The position is equal.} bxc6 {[%emt 0:00:10]} 10. d4 {[%emt 0:00:21]} Nd7 {[%emt 0:08:38]} 11. Be3 {[%emt 0:03:25]} Qb6 {[%emt 0:10:06]} 12. Qd2 {[%emt 0:02:18]} a5 {[%emt 0:03:49]} 13. Na3 {[%emt 0:03:18]} a4 {[%emt 0:01:08]} 14. Bh6 {[%emt 0:07:54]} Bxh6 {[%emt 0:08:05]} (14... cxd4 $11 {keeps the balance.} 15. cxd4 Rb8) 15. Qxh6 $16 {[%emt 0:00:15] Intending Ng5 and mate.} Re8 {[%emt 0:00:08]} 16. Qd2 {[%emt 0:03:25]} (16. e5 $14 cxd4 17. exd6 (17. cxd4 Qb4 $16)) 16... Ba6 $11 {[%emt 0:01:37]} 17. e5 {[%emt 0:04:54]} Nf8 {[%emt 0:15:36]} (17... cxd4 $11 18. e6 fxe6 19. cxd4 Rab8) 18. dxc5 {[%emt 0:11:57]} Qxc5 {[%emt 0:08:34]} (18... dxc5 {simplifies} 19. e6 f6 20. Re3 Rab8) 19. Qf4 {[%emt 0:00:56]} Ne6 {[%emt 0:01:26] Wards off Ng5} 20. Qxa4 {[%emt 0:05:15]} Be2 {[%emt 0:00:54]} 21. Qe4 {[%emt 0:00:44]} Bxf3 {[%emt 0:00:07]} 22. Qxf3 {[%emt 0:00:46]} dxe5 {[%emt 0:01:03]} 23. b4 {[%emt 0:00:17]} (23. Qe4 {seems wilder.} Nf4 24. Nc4 f5 25. Qxe5 Qxc4 26. b3) 23... Qd5 {[%emt 0:02:11]} (23... e4 $5 24. Qxe4 (24. Rxe4 Qd5 $17) 24... Qxc3 $11) 24. Qxd5 {[%emt 0:00:36]} cxd5 {[%emt 0:00:04]} 25. Nb5 {[%emt 0:00:08]} e4 {[%emt 0:06:13]} (25... Reb8 $11 26. a4 d4) 26. g3 {[%emt 0:03:10]} ({White should play} 26. Red1 $16) 26... Ra4 {[%emt 0:04:17]} 27. Red1 {[%emt 0:03:04]} Rd8 {[%emt 0:00:03]} 28. a3 {[%emt 0:04:53]} f5 {[%emt 0:01:55]} 29. h4 {[%emt 0:07:27]} Kf7 {[%emt 0:04:36]} 30. Kg2 {[%emt 0:02:15]} Kf6 {[%emt 0:02:43]} 31. f3 {[%emt 0:01:25]} Rd7 {[%emt 0:02:06]} (31... h6 $11) 32. fxe4 {[%emt 0:01:59]} (32. c4 $1 $16 {Threatens to win with Nc3.} exf3+ (32... d4 33. fxe4 fxe4 34. Nc3 $18) 33. Kxf3) 32... fxe4 $2 {[%emt 0:00:08]} (32... Nc7 $1 $11 {and Black has nothing to worry.} 33. Nxc7 Rxc7) 33. c4 $1 $18 {[%emt 0:01:11]} d4 {[%emt 0:04:53]} 34. Nc3 {[%emt 0:00:36]} Raa7 {[%emt 0:00:46]} 35. Nxe4+ {[%emt 0:00:28]} Kf5 {[%emt 0:00:04]} 36. Nf2 {[%emt 0:02:09]} Ra4 $2 {[%emt 0:01:42]} (36... Rdc7 37. c5 Nxc5 38. g4+ (38. bxc5 e5 $18) 38... Ke6 39. bxc5 Rxc5 40. Rxd4 Kf7) 37. Rd3 {[%emt 0:01:02] Re1 would now be deadly.} Rda7 {[%emt 0:00:48]} 38. Kf3 {[%emt 0:00:43]} (38. Rf3+ Ke5 39. Rb3 Rc7 $16) (38. Rb3 $18) 38... Rxb4 $16 {[%emt 0:00:40]} 39. g4+ {[%emt 0:02:32]} Kf6 {[%emt 0:00:04]} 40. Ne4+ {[%emt 0:00:32]} (40. axb4 $16 Rxa1 41. Rd1) 40... Kf7 $1 $14 {[%emt 0:01:01]} 41. axb4 {[%emt 0:15:18]} Rxa1 {[%emt 0:15:04][%mdl 4096] Endgame. KRN-KRN} 42. b5 {[%emt 0:05:42]} Rf1+ {[%emt 0:05:23]} (42... Rh1 $14) 43. Ke2 $16 {[%emt 0:02:28]} Rb1 {[%emt 0:00:37]} 44. Rf3+ {[%emt 0:01:01]} Ke8 {[%emt 0:00:05]} 45. Nd2 {[%emt 0:00:23]} Rb2 {[%emt 0:00:00]} (45... Rg1 $11 {and Black stays safe.}) 46. Rb3 $1 $18 {[%emt 0:00:00]} (46. Kd3 Ra2 $11) 46... Ra2 {[%emt 0:00:00]} 47. b6 {[%emt 0:00:00]} Ra8 {[%emt 0:00:00]} 48. b7 $2 {[%emt 0:00:00]} ({Better is} 48. Rb5 $18) 48... Rb8 $14 {[%emt 0:00:00]} 49. Ne4 {[%emt 0:00:00]} (49. Rb5 {simplifies} Nd8 50. Kd3 Rxb7 51. Rxb7 Nxb7 52. Kxd4 Kd7 53. Kd5) 49... Kd7 {[%emt 0:00:00]} 50. Rb6 {[%emt 0:00:00] Black must now prevent Kf3.} Nd8 {[%emt 0:00:00]} (50... Nf4+ $1 $11 51. Kf3 Kc7) 51. Nc5+ $16 {[%emt 0:00:00]} Kc7 {[%emt 0:00:00]} 52. Rb2 {[%emt 0:00:00]} (52. Rb5 $16 {Strongly threatening Na6+.} Kc6 53. Kd3) 52... Kc6 $1 $14 {[%emt 0:00:00]} 53. Nb3 {[%emt 0:00:00]} (53. Na6 $2 Rxb7 54. Ra2 Nf7 $19) 53... e5 $132 {[%emt 0:01:55][%mdl 2048] Black is not holding back} (53... Kxb7 $6 54. Nxd4+ Kc8 55. Rxb8+ Kxb8 56. Kd3 $16) (53... Kc7 {simplifies} 54. Nxd4 Rxb7 55. Rxb7+ Kxb7 56. Kd3 Kb6) 54. Na5+ {[%emt 0:00:00]} Kc7 {[%emt 0:00:48][%cal Rd8b7]} 55. Rb5 {[%emt 0:00:55]} e4 {[%emt 0:01:16]} (55... Nxb7 $11 {remains equal.} 56. Rxe5 Nxa5 57. Rxa5 Rb3) 56. Re5 {[%emt 0:01:42]} ({White has to play} 56. Rc5+ $16 Kd7 57. Rd5+ Kc7 58. Rxd4 Nxb7 59. Nxb7 Rxb7 60. Rxe4 Rb2+ 61. Ke3) 56... Kb6 {[%emt 0:00:47]} 57. Nb3 {[%emt 0:03:43]} Nxb7 {[%emt 0:01:09]} (57... Nc6 $14 58. Rxe4 Rxb7 59. Nxd4 Nxd4+ 60. Rxd4 Kc5) 58. Rb5+ {[%emt 0:00:17]} ({Don't play} 58. Rxe4 $6 Nc5 59. Nxc5 (59. Rxd4 $2 {is the wrong capture.} Nxb3 60. Rd6+ Kc7 $19) 59... Kxc5 $11) (58. c5+ $16 Kb5 59. Nxd4+ (59. Rxe4 Nxc5 60. Nxd4+ Kc4 $11) 59... Kc4 60. c6 (60. Rxe4 Nxc5 61. Rf4 Re8+ 62. Kf3 Nd3 $11) 60... Kxd4 61. Rb5) 58... Ka6 {[%emt 0:01:17]} 59. Nc5+ $1 {[%emt 0:02:04]} Ka7 {[%emt 0:00:04]} 60. Nxe4 {[%emt 0:00:13] Hoping for Kd3.} Rf8 {[%emt 0:00:34]} 61. c5 {[%emt 0:03:41]} Nd8 {[%emt 0:00:35]} 62. Rb6 {[%emt 0:01:22]} Rf4 {[%emt 0:00:37] [#]} (62... Nb7 $142) 63. Nf2 {[%emt 0:01:00]} (63. Nd6 $1 $16 {[%cal Rd6b5]}) 63... Nb7 $11 {[%emt 0:01:03]} 64. Re6 {[%emt 0:01:29]} Nxc5 {[%emt 0:00:23]} 65. Re7+ {[%emt 0:00:10]} Kb6 {[%emt 0:00:07]} 66. Rxh7 {[%emt 0:00:19]} Kb5 {[%emt 0:00:45]} 67. Nd3 {[%emt 0:01:32]} Re4+ {[%emt 0:00:43]} 68. Kd2 {[%emt 0:00:09]} Rxg4 {[%emt 0:00:13] ...Rg2+ is the strong threat.} 69. Nxc5 {[%emt 0:00:16]} Kxc5 {[%emt 0:00:06] KR-KR} 70. h5 {[%emt 0:01:47]} g5 {[%emt 0:00:16]} 71. Rc7+ {[%emt 0:00:31]} Kd6 {[%emt 0:00:18]} 72. Rg7 {[%emt 0:00:48]} Ke5 {[%emt 0:00:26]} 73. h6 {[%emt 0:00:56]} Kf6 {[%emt 0:01:11]} 74. Rd7 {[%emt 0:00:37]} Rh4 {[%emt 0:00:39]} 75. h7 {[%emt 0:00:15]} Kg6 {[%emt 0:00:34]} 76. Ke2 {[%emt 0:00:54]} Rxh7 {[%emt 0:00:27]} 77. Rxd4 {[%emt 0:00:07]} Rf7 {[%emt 0:00:03] ( -> ...Kh5)} 78. Rd8 $2 {[%emt 0:01:02][%mdl 8192] [#]} (78. Rd1 $11) 78... Kh5 $1 {[%emt 0:00:22] Black mates.} 79. Rh8+ {[%emt 0:00:21]} Kg4 {[%emt 0:00:06]} 80. Rg8 {[%emt 0:01:32]} Kh4 {[%emt 0:00:08]} 81. Rh8+ {[%emt 0:02:38]} Kg3 {[%emt 0:00:04]} 82. Rg8 {[%emt 0:00:43]} g4 {[%emt 0:00:06]} 83. Rh8 {[%emt 0:00:38]} Kg2 {[%emt 0:00:06]} 84. Rh6 {[%emt 0:00:35]} Re7+ {[%emt 0:00:05]} 85. Kd3 {[%emt 0:00:14]} g3 {[%emt 0:00:05]} 86. Rh8 {[%emt 0:00:26]} Kf2 {[%emt 0:00:13]} 87. Rf8+ {[%emt 0:00:12]} Kg1 {[%emt 0:00:05]} 88. Rg8 {[%emt 0:00:30]} g2 {[%emt 0:00:05]} 89. Rg6 {[%emt 0:00:55]} Rh7 {[%emt 0:01:33]} 90. Ke2 {[%emt 0:00:43]} Kh2 {[%emt 0:00:05]} 91. Kf2 {[%emt 0:00:17] [#]} g1=Q+ $1 {[%emt 0:00:00][%mdl 512]} 92. Rxg1 {[%emt 0:00:14] A wild game.   Weighted Error Value: White=0.31/Black=0.41.  Loses game:     	White=1     	Black=2      Mistake:       	White=9     	Black=10     Inaccurate:     	White=4     	Black=3      OK:         	White=29    	Black=28     Best:        	White=6     	Black=9      Strong:       	White=3     	Black=3} 0-1

[Event "CIS Master Groups 2024"]
[Site "Vasto"]
[Date "2024.04.14"]
[Round "11.22"]
[White "Brunello, Marina"]
[Black "Cammalleri, Elena"]
[Result "1-0"]
[ECO "B43"]
[WhiteElo "2353"]
[BlackElo "1824"]
[Annotator "TA"]
[PlyCount "57"]
[EventDate "2024.04.07"]
[EventType "team-tourn"]
[EventCountry "ITA"]
[SourceTitle "playchess.com"]
[Source "ChessBase"]
[SourceQuality "1"]
[TimeControl "40/5400+30:900+30"]

{[%evp 22,57,0,-4,12,-7,11,-29,14,26,36,26,74,0,70,48,40,24,245,122,171,171,236,211,729,737,735,723,1289,1242,1368,1479,1702,1707,1594,1460,29979,29980]} 1. e4 {[%emt 0:02:24]} c5 {[%emt 0:00:17]} 2. Nf3 {[%emt 0:00:28]} e6 {[%emt 0:00:06]} 3. d4 {[%emt 0:00:48]} cxd4 {[%emt 0:00:06]} 4. Nxd4 {[%emt 0:00:04]} a6 {[%emt 0:00:05]} 5. Bd3 {[%emt 0:01:01]} Qc7 {[%emt 0:00:19]} 6. O-O {[%emt 0:03:07]} Nf6 {[%emt 0:00:38]} 7. Nc3 {[%emt 0:02:06]} Be7 {[%emt 0:01:51]} 8. Kh1 {[%emt 0:01:35]} b5 {[%emt 0:03:26]} 9. a3 {[%emt 0:00:31]} Bb7 {[%emt 0:00:42]} 10. Qe2 {[%emt 0:00:07]} d6 {[%emt 0:07:10]} 11. f4 {[%emt 0:03:17]} Nbd7 {[%emt 0:03:39]} 12. Bd2 {[%emt 0:01:05]} O-O {[%emt 0:11:54]} 13. Rae1 {[%emt 0:00:20]} Nc5 {[%emt 0:02:14]} 14. Rf3 {[%emt 0:04:36]} Nxd3 {[%emt 0:01:55] Black has an edge.} 15. cxd3 {[%emt 0:00:14]} Rfd8 {[%emt 0:05:24]} 16. Rh3 {[%emt 0:00:25]} g6 {[%emt 0:16:18]} (16... Rac8 $11 {might be stronger.}) 17. Nf3 {[%emt 0:03:23] White is more active.} (17. f5 $16 exf5 18. exf5) 17... Nd7 {[%emt 0:03:19]} ({Black should try} 17... Bf8 $11) 18. Ng5 {[%emt 0:03:28]} Nf8 {[%emt 0:04:38]} 19. Qg4 {[%emt 0:04:30][%cal Og5f7] [#] Nxf7! is the strong threat.} (19. f5 $5 exf5 20. exf5 Bxg5 21. Bxg5 $14) 19... Bc8 $2 {[%emt 0:12:05]} (19... f5 $11 {and Black is okay.} 20. Qd1 Bf6) 20. Rf1 {[%emt 0:06:03]} (20. f5 $18 {is more deadly.}) 20... Bf6 {[%emt 0:07:06]} (20... f5 $16 21. exf5 gxf5) 21. Qh4 $18 {[%emt 0:08:32][%cal Of4f5] And now f5! would win.} Qe7 {[%emt 0:04:21]} (21... d5 {keeps fighting.}) 22. f5 {[%emt 0:00:41]} Ra7 $2 {[%emt 0:02:25]} (22... Bb7 23. fxg6 fxg6) 23. fxg6 {[%emt 0:01:10]} fxg6 {[%emt 0:00:37]} 24. Rhf3 {[%emt 0:01:17]} Nd7 {[%emt 0:01:45] [#]} 25. e5 $1 {[%emt 0:01:14][%mdl 512]} dxe5 {[%emt 0:01:10]} (25... Nxe5 26. Rxf6) 26. Nce4 {[%emt 0:00:08] A dynamic duo of knights.} Rf8 {[%emt 0:00:38]} 27. Bb4 {[%emt 0:00:34]} Bxg5 {[%emt 0:03:38]} 28. Rxf8+ {[%emt 0:00:32]} Nxf8 {[%emt 0:00:31]} 29. Nxg5 {[%emt 0:00:07] Weighted Error Value: White=0.30/Black=0.88.  Loses game:     	---       	Black=1      Mistake:       	White=2     	Black=5      Inaccurate:     	White=1     	Black=1      OK:         	White=4     	Black=1} 1-0

[Event "CIS Master Groups 2024"]
[Site "Vasto"]
[Date "2024.04.14"]
[Round "11.23"]
[White "Cambria, Chiara"]
[Black "Brunello, Roberta"]
[Result "0-1"]
[ECO "C53"]
[WhiteElo "1821"]
[BlackElo "1921"]
[Annotator "NA RC"]
[PlyCount "88"]
[EventDate "2024.04.07"]
[EventType "team-tourn"]
[EventCountry "ITA"]
[SourceTitle "playchess.com"]
[Source "ChessBase"]
[SourceQuality "1"]
[TimeControl "40/5400+30:900+30"]

1. e4 {[%emt 0:00:02]} e5 {[%emt 0:00:42]} 2. Nf3 {[%emt 0:00:06]} Nc6 {[%emt 0:00:09]} 3. Bc4 {[%emt 0:00:08]} Bc5 {[%emt 0:00:10]} 4. c3 {[%emt 0:00:08]} d6 {[%emt 0:00:41]} 5. d4 {[%emt 0:00:41]} exd4 {[%emt 0:00:40]} 6. cxd4 {[%emt 0:00:13]} Bb4+ {[%emt 0:00:06]} 7. Bd2 {[%emt 0:01:12]} Bxd2+ {[%emt 0:01:23]} 8. Qxd2 {[%emt 0:00:15]} h6 {[%emt 0:03:01]} 9. Nc3 {[%emt 0:03:02]} Nf6 {[%emt 0:01:16]} 10. O-O {[%emt 0:03:56]} O-O {[%emt 0:05:53]} 11. Bb3 {[%emt 0:09:17]} Bg4 {[%emt 0:03:23]} 12. Ne1 {[%emt 0:08:04]} Qe7 {[%emt 0:14:46]} 13. Nc2 {[%emt 0:06:15]} Bh5 {[%emt 0:09:44]} 14. f3 {[%emt 0:01:38]} Bg6 {[%emt 0:12:13]} 15. Ne3 {[%emt 0:01:23]} Rae8 {[%emt 0:06:44]} 16. Ncd5 {[%emt 0:06:11]} Nxd5 {[%emt 0:01:27]} 17. Nxd5 {[%emt 0:00:08]} Qd7 {[%emt 0:02:20]} 18. Rac1 {[%emt 0:02:48]} Kh8 {[%emt 0:01:56]} 19. Ba4 {[%emt 0:05:54]} a6 {[%emt 0:08:14]} 20. Nf4 {[%emt 0:00:51]} b5 {[%emt 0:06:01]} 21. Nxg6+ {[%emt 0:00:52]} fxg6 {[%emt 0:00:08]} 22. Bb3 {[%emt 0:00:39]} Nd8 {[%emt 0:02:34]} 23. Qc3 {[%emt 0:04:26]} c6 {[%emt 0:01:54]} 24. Rfd1 {[%emt 0:07:16]} Qe7 {[%emt 0:08:52]} 25. Re1 {[%emt 0:07:30]} Qg5 {[%emt 0:01:28]} 26. Qd3 {[%emt 0:08:06]} c5 {[%emt 0:01:23]} 27. dxc5 {[%emt 0:00:34]} dxc5 {[%emt 0:00:05]} 28. Bd5 {[%emt 0:00:56]} c4 {[%emt 0:00:42]} 29. Qe3 {[%emt 0:01:51]} Qh5 {[%emt 0:03:15]} 30. b3 {[%emt 0:01:25]} cxb3 {[%emt 0:00:09]} 31. axb3 {[%emt 0:00:38]} Ne6 {[%emt 0:01:02]} 32. Bc6 {[%emt 0:10:32]} Re7 {[%emt 0:01:09]} 33. Red1 {[%emt 0:10:03]} Nf4 {[%emt 0:01:27]} 34. Rc5 {[%emt 0:00:00]} g5 {[%emt 0:00:49]} 35. Rd7 {[%emt 0:00:00]} Rxd7 {[%emt 0:00:55]} 36. Bxd7 {[%emt 0:00:00]} Qf7 {[%emt 0:00:07]} 37. Rf5 {[%emt 0:00:00]} Qe7 {[%emt 0:00:17]} 38. Qb6 {[%emt 0:00:00]} g6 {[%emt 0:00:33]} 39. Rxf8+ {[%emt 0:00:10]} Qxf8 {[%emt 0:00:01]} 40. Qxa6 {[%emt 0:00:14]} Qc5+ {[%emt 0:00:15]} 41. Kf1 {[%emt 0:15:32]} Qc1+ {[%emt 0:15:25]} 42. Kf2 {[%emt 0:00:06]} Qd2+ {[%emt 0:00:08]} 43. Kf1 {[%emt 0:00:50]} Qe2+ {[%emt 0:00:09]} 44. Kg1 {[%emt 0:00:06]} Qxg2# {[%emt 0:00:05]} 0-1